Cogmind - Beta 13 @@@ ROGUE MODE // 2024.07.02 @ 20:19:39 Player: Balonith Result: Destroyed by G-47 Trooper with Particle Gun Performance ------------- Evolutions (2) 1000 Regions Visited (4) 800 Robots Destroyed (72) 360 Value Destroyed (2294) 2294 Prototype IDs (7) 140 Alien Tech Used (0) 0 Bonus (132) 132 TOTAL SCORE: 4726 Bonus ------- High Alert Combat Kills 132 Cogmind --------- Core Integrity 0/550 Matter 241/300 Energy 100/100 System Corruption 8% Temperature Cool (9) Movement Core (200) Ox3 Location -8/Storage Parts ------- > --- POWER (1) -------- (None) > --- PROPULSION (4) --- (None) > --- UTILITY (3) ------ Medium Storage Unit Visual Processing Unit > --- WEAPON (3) ------- (None) > --- INVENTORY (10) --- Improved Sensor Array Improved Terrain Scanner Advanced Terrain Scan Processor Field Recycling Unit (0) Improved Datajack Peak State ------------ > --- POWER ------------ Heavy Ion Engine > --- PROPULSION ------- Aluminum Leg Carbon-fiber Leg Improved Carbon-fiber Leg Aerolev Unit > --- UTILITY ---------- Improved Heat Sink Small Storage Unit Visual Processing Unit > --- WEAPON ----------- Pulse Rifle Gauss Rifle Precision Grenade Launcher > --- INVENTORY -------- Aluminum Leg High-capacity Storage Unit Improved Sensor Array Improved Terrain Scanner Advanced Terrain Scan Processor Improved Light Armor Plating Field Recycling Unit Improved Datajack [Rating: 35] Favorites ----------- Power Ion Engine Engine Ion Engine Power Core Light Nuclear Core Propulsion Aluminum Leg Leg Aluminum Leg Wheel Wheel Hover Unit Aerolev Unit Flight Unit Improved Flight Unit Utility Small Storage Unit Device Improved Heat Sink Storage Small Storage Unit Processor Visual Processing Unit Protection Light Armor Plating Weapon Heavy Assault Rifle Energy Gun Medium Laser Energy Cannon Heavy Particle Cannon Ballistic Gun Heavy Assault Rifle Launcher Precision Grenade Launcher Impact Weapon Maul Slashing Weapon Axe Special Melee Weapon Improved Datajack Build | -11 -10 -9 -8 -8 ------- Run | Yrd Mat Mat Mat Sto Slots Evolved 4 | . . 2 2 . Power . | . . . . . Propulsion 2 | . . 1 1 . Utility 1 | . . 1 . . Weapon 1 | . . . 1 . Parts Attached 80 | 6 4 25 36 9 Power 11 | 2 1 2 5 1 Engine 9 | 2 1 2 3 1 Core 2 | . . . 2 . Reactor . | . . . . . Propulsion 31 | 2 . 15 10 4 Treads . | . . . . . Leg 24 | . . 11 9 4 Wheel 3 | 2 . 1 . . Hover 1 | . . . 1 . Flight 3 | . . 3 . . Utility 17 | . 3 4 8 2 Device 5 | . 2 . 3 . Storage 6 | . . 1 4 1 Processor 1 | . . 1 . . Hackware . | . . . . . Protection 5 | . 1 2 1 1 Artifact . | . . . . . Weapon 21 | 2 . 4 13 2 Energy Gun 3 | 1 . . 2 . Energy Cannon 3 | . . . 3 . Ballistic Gun 7 | 1 . 2 3 1 Ballistic Cannon . | . . . . . Launcher 3 | . . . 3 . Special Weapon . | . . . . . Impact Weapon 3 | . . 2 1 . Slashing Weapon 1 | . . . . 1 Piercing Weapon . | . . . . . Special Melee Weapon 1 | . . . 1 . Unidentified Prototypes 5 | . . 1 3 1 Parts Lost 36 | . 2 8 10 16 Power 5 | . 1 1 1 2 Propulsion 13 | . . 3 3 7 Utility 6 | . 1 2 1 2 Weapon 12 | . . 2 5 5 Highest Loss Streak 12 | . 1 5 6 12 To Critical Strikes 2 | . . . 1 1 Average Slot Usage (%) 90 | . 97 83 93 85 Engine 8 | . 14 7 7 7 Leg 25 | . . 20 34 28 Wheel 3 | . 28 . . . Flight 1 | . . 4 . . Device 9 | . 21 12 4 7 Storage 7 | . . 7 8 9 Processor 5 | . . . 9 9 Protection 4 | . 4 7 3 . Energy Gun 6 | . 14 6 4 7 Energy Cannon 1 | . . . 3 . Ballistic Gun 11 | . 14 10 10 10 Launcher 2 | . . . 4 3 Naked Turns . | . . . . . Heaviest Build 28 | 9 13 15 28 28 Greatest Support 58 | 20 20 30 58 58 Greatest Overweight (x) 4 | . . 4 . 3 Average Overweight (x) . | . . . . . Largest Inventory Capacity 20 | 5 5 8 20 10 Average Capacity 7 | 5 5 7 7 8 Most Carried 9 | 4 5 7 9 8 Average Carried 5 | 1 4 3 7 7 Final Capacity 10 | 5 5 5 8 10 Final Carried 8 | 4 5 5 8 5 Class Distribution -------------------- 33% | Mutant 28% | Scavenger-Skirmisher 25% | Scavenger-Mutant 9% | Scavenger-Tank Dominant Class ---------------- Mutant | -10/Materials Mutant | -9/Materials Scavenger-Skirmisher | -8/Materials Scavenger-Skirmisher | -8/Storage Resources | -11 -10 -9 -8 -8 ----------- Run | Yrd Mat Mat Mat Sto Matter Collected 1576 | 266 93 218 716 283 Remotely . | . . . . . Salvage Created 2522 | 30 226 350 1352 564 Parts 135 | 3 19 20 70 23 Haulers Intercepted . | . . . . . Recyclers Shooed 2 | . 1 1 . . Parts Field Recycled 4 | . . . 4 . Retrieved Matter 27 | . . . 27 . Parts Self-Destructed . | . . . . . Prevented . | . . . . . Kills | -11 -10 -9 -8 -8 ------- Run | Yrd Mat Mat Mat Sto Combat Hostiles Destroyed 55 | 1 7 10 24 13 Melee 3 | . . 3 . . Guns 33 | 1 7 5 13 7 Cannons 5 | . . . 5 . AOE 12 | . . . 6 6 Classes Destroyed 11 | 1 2 1 7 . Worker 2 | . . . 1 1 Builder 6 | . . . 4 2 Recycler 6 | . . . 5 1 Watcher 3 | . 1 1 1 . Swarmer 9 | . 3 3 3 . Grunt 26 | 1 4 5 10 6 Brawler 3 | . . . 1 2 Duelist 2 | . . . 1 1 Sentry 10 | . . 2 4 4 Specialist 2 | . . . 2 . Hunter 3 | . . . 3 . Best Kill Streak 10 | 1 5 5 9 10 Combat Bots Only 7 | 1 5 5 5 7 Max Kills in Single Turn 3 | 1 1 1 3 3 Gunslinging . | . . . . . Exploded 3 | . . . 2 3 Melee 1 | . . 1 . . Uniques/NPCs Destroyed . | . . . . . Combat | -11 -10 -9 -8 -8 -------- Run | Yrd Mat Mat Mat Sto Hostile Shots Fired 410 | 2 37 106 136 129 Missed 106 | . 3 27 41 35 Damage Taken 4412 | 26 376 909 1466 1635 Core 865 | 11 53 240 155 406 Absorbed by Shields . | . . . . . Redirected to Shielding 33 | . . 33 . . Core Remaining (%) 69 | 95 74 40 . . Volleys Fired 154 | 2 22 42 54 34 Largest 3 | 2 2 2 3 3 Hottest 131 | 70 70 70 131 127 Shots Fired 299 | 4 43 64 105 83 Gun 252 | 4 43 64 66 75 Cannon 23 | . . . 23 . Launcher 24 | . . . 16 8 Special . | . . . . . Kinetic 158 | 2 21 43 47 45 Thermal 106 | 2 22 21 31 30 Explosive 24 | . . . 16 8 Electromagnetic 11 | . . . 11 . Robot Hit Streak 13 | 1 5 13 13 10 Robot Miss Streak 4 | 3 2 4 2 4 Penetration Max 1 | . . . . 1 Secondary Targets 3 | . 2 1 . . Max Gunslinging Chain 1 | . 1 1 . . Shots Hit Robots 215 | 1 28 54 71 61 Core Hits 127 | 1 13 18 58 37 Critical Kills 2 | . . 1 . 1 Critical Parts Destroyed 1 | . . 1 . . Critical Strikes 8 | . 1 4 . 3 Burn 4 | . 1 2 . 1 Destroy 1 | . . . . 1 Smash 2 | . . 2 . . Sever 1 | . . . . 1 Melee Attacks 28 | . . 16 5 7 Impact 16 | . . 16 . . Slashing 7 | . . . . 7 Piercing . | . . . . . Sneak Attacks 1 | . . 1 . . Combat Hostiles . | . . . . . Follow-up Attacks . | . . . . . Damage Inflicted 6172 | 25 380 1023 2792 1952 Guns 2696 | 15 380 654 628 1019 Cannons 497 | . . . 497 . Explosions 2521 | . . . 1667 854 Melee 448 | . . 369 . 79 Ramming 10 | 10 . . . . Kinetic 1820 | 15 203 453 448 701 Thermal 1299 | . 177 201 603 318 Explosive 2348 | . . . 1494 854 Electromagnetic 247 | . . . 247 . Impact 369 | . . 369 . . Slashing 79 | . . . . 79 Piercing . | . . . . . Highest Corruption 8 | . . . . 8 Average Corruption 7 | . . . . 7 Corruption Purged . | . . . . . Corruption Blocked . | . . . . . Effects 1 | . . . . 1 Message Errors 1 | . . . . 1 Overload Shots . | . . . . . Overflow Damage 91 | . . 42 49 . Projectiles . | . . . . . Explosions 49 | . . . 49 . Melee 42 | . . 42 . . Knockbacks 3 | . . 3 . . Impact 3 | . . 3 . . Kinetic . | . . . . . Secondary . | . . . . . Self-Inflicted Damage 100 | 5 . . 49 46 Shots 2 | . . . 1 1 Rammed 1 | 1 . . . . Targets Rammed 1 | 1 . . . . Kicked . | . . . . . Crushed . | . . . . . Highest Temperature 375 | 30 327 34 375 261 Average Temperature 98 | 19 183 14 86 74 Received Heat Transfer 1563 | 12 168 357 396 630 Effects 6 | . 2 . 2 2 Shutdowns 1 | . . . 1 . Energy Bleed 1 | . 1 . . . Interference 3 | . 1 . . 2 Damage (minor) 1 | . . . 1 . Siege Activations . | . . . . . Robots Corrupted . | . . . . . Combat Hostiles . | . . . . . Parts Fried 6 | . . 3 3 . Impact Corruptions 4 | . . 4 . . Robots Melted . | . . . . . Combat Hostiles . | . . . . . Parts Melted 4 | . 3 1 . . Heat Transferred 3136 | . 592 740 1027 777 Parts Sabotaged . | . . . . . Parts Stolen . | . . . . . Parts Stripped . | . . . . . Power Chain Reactions 1 | . . . 1 . Alert | -11 -10 -9 -8 -8 ------- Run | Yrd Mat Mat Mat Sto Peak Influence 600 | 20 253 296 543 600 Initial 228 | . 13 106 62 228 Average 214 | 10 138 182 200 401 Maximum Alert Level 2 | . 1 1 2 2 Low Security (%) 50 | 100 75 60 51 4 Level 1 34 | . 24 39 37 39 Level 2 14 | . . . 10 55 Level 3 . | . . . . . Level 4 . | . . . . . Level 5 . | . . . . . High Security . | . . . . . Max Security . | . . . . . Squads Dispatched 16 | . 2 1 8 5 Investigation 1 | . . . . 1 Extermination . | . . . . . Reinforcement 7 | . 2 1 3 1 Assault . | . . . . . Garrison 8 | . . . 5 3 Intercept . | . . . . . Searches Triggered . | . . . . . Construction Impeded 3 | . . . 2 1 Haulers Reinforced . | . . . . . Active Scanning Responses . | . . . . . Cargo Convoy Interrupts . | . . . . . Stealth | -11 -10 -9 -8 -8 --------- Run | Yrd Mat Mat Mat Sto Distress Signals 3 | . . . 3 . Communications Jammed . | . . . . . Distress Signals . | . . . . . Times Spotted 80 | 1 9 16 36 18 Peak Tracking Total 9 | 1 6 5 9 6 Tactical Retreats 1 | . . . 1 . Traps | -11 -10 -9 -8 -8 ------- Run | Yrd Mat Mat Mat Sto Traps Triggered 4 | . . 2 2 . Indirectly . | . . . . . Trap Hack Attempts . | . . . . . Triggered . | . . . . . Disarmed . | . . . . . Reprogrammed . | . . . . . Reused . | . . . . . Traps Extracted . | . . . . . Installed . | . . . . . Triggered . | . . . . . Machines | -11 -10 -9 -8 -8 ---------- Run | Yrd Mat Mat Mat Sto Machines Disabled 3 | . . . 2 1 Max in Single Turn 1 | . . . 1 1 Machines Repaired . | . . . . . Machines Dismantled . | . . . . . Machines Sabotaged . | . . . . . Overloaded Fab Kills . | . . . . . Hacking | -11 -10 -9 -8 -8 --------- Run | Yrd Mat Mat Mat Sto Machines Accessed 12 | . 1 4 4 3 Terminals 11 | . 1 3 4 3 Fabricators . | . . . . . Repair Stations . | . . . . . Recycling Units 1 | . . 1 . . Scanalyzers . | . . . . . Garrison Access . | . . . . . Total Hacks 34 | . 2 13 14 5 Successful 24 | . 2 8 10 4 Failed 10 | . . 5 4 1 Catastrophic 2 | . . 1 1 . Database Lockouts . | . . . . . Manual 1 | . . . . 1 Terminals 32 | . 2 11 14 5 Fabricators . | . . . . . Repair Stations . | . . . . . Recycling Units 2 | . . 2 . . Scanalyzers . | . . . . . Garrison Access . | . . . . . Terminal Hacks 22 | . 2 6 10 4 Record 2 | . . . 1 1 Prototype ID Bank 1 | . 1 . . . Open Door 1 | . . . . 1 Level Access Points 1 | . 1 . . . Branch Access Points 1 | . . 1 . . Emergency Access Points 2 | . . . 2 . Alert Level 6 | . . 2 3 1 Unreport Threat 2 | . . . 1 1 Locate Traps 2 | . . 2 . . Dispatch Records 2 | . . 1 1 . Security Status 1 | . . . 1 . Patrol Status 1 | . . . 1 . Fabricator Hacks . | . . . . . Repair Station Hacks . | . . . . . Recycling Unit Hacks 2 | . . 2 . . Report Inventory 1 | . . 1 . . Retrieve Components 1 | . . 1 . . Scanalyzer . | . . . . . Garrison Access Hacks . | . . . . . Unauthorized Hacks . | . . . . . Terminals . | . . . . . Fabricators . | . . . . . Repair Stations . | . . . . . Recycling Units . | . . . . . Scanalyzers . | . . . . . Garrison Access . | . . . . . Data Cores Recovered . | . . . . . Used . | . . . . . Hacking Detections 9 | . . 4 4 1 Full Trace Events 3 | . . 1 1 1 Feedback Events . | . . . . . Feedback Blocked . | . . . . . Robot Schematics Acquired . | . . . . . Robots Built . | . . . . . Authchips . | . . . . . Time . | . . . . . Total Robot Build Rating . | . . . . . Part Schematics Acquired . | . . . . . Parts Built . | . . . . . Authchips . | . . . . . Time . | . . . . . Total Part Build Rating . | . . . . . Parts Repaired . | . . . . . Time . | . . . . . Parts Recycled . | . . . . . Recycled Matter . | . . . . . Retrieved Matter . | . . . . . Retrieved Components 9 | . . 9 . . Parts Scanalyzed . | . . . . . Part Schematics Acquired . | . . . . . Parts Damaged . | . . . . . Bothacking | -11 -10 -9 -8 -8 ------------ Run | Yrd Mat Mat Mat Sto Used RIF Installer . | . . . . . Robots Hacked 2 | . . . 2 . Non-combat 1 | . . . 1 . Combat 1 | . . . 1 . Robot Hacks Applied 2 | . . . 2 . parse_system 2 | . . . 2 . Relay Couplers Released . | . . . . . Fabnet Peak Effective % . | . . . . . Robots Rewired . | . . . . . Allies Hacked . | . . . . . Hacks Repelled . | . . . . . Allies | -11 -10 -9 -8 -8 -------- Run | Yrd Mat Mat Mat Sto Total Allies . | . . . . . Largest Group . | . . . . . Highest-Rated Group . | . . . . . Highest-Rated Ally . | . . . . . Total Orders . | . . . . . Ally Attacks . | . . . . . Total Damage . | . . . . . Kills . | . . . . . Allies Corrupted . | . . . . . Allies Melted . | . . . . . Intel | -11 -10 -9 -8 -8 ------- Run | Yrd Mat Mat Mat Sto Robot Analysis Total . | . . . . . Derelict Logs Recovered . | . . . . . Drone Launches . | . . . . . Drone Recoveries . | . . . . . Exploration | -11 -10 -9 -8 -8 ------------- Run | Yrd Mat Mat Mat Sto Turns Passed 2330 | 149 292 512 937 440 Spaces Moved 1400 | 142 215 257 563 223 Core 31 | 22 . 8 . 1 Treads . | . . . . . Legs 980 | . . 195 563 222 Wheels 344 | 120 215 9 . . Hover . | . . . . . Flight 45 | . . 45 . . Fastest Speed 37 | 50 80 37 120 120 Average Speed 108 | 75 80 112 120 120 Slowest Speed 250 | 80 80 250 120 200 Overloaded Moves . | . . . . . Propulsion Burnouts . | . . . . . Robots Hopped . | . . . . . Cave-ins Triggered . | . . . . . Exploration Rate (%) 23 | 8 29 19 39 23 Regions Visited 4 Branch Regions 1 Pre-discovered Areas . | . . . . . Known Exits Taken 1 | . 1 . . . Unknown Exits Taken 3 | 1 . 1 1 . Scrap Searched . | . . . . . Spaces Dug . | . . . . . Terrain Destroyed 173 | . . . 129 44 Melee . | . . . . . Projectile 4 | . . . 1 3 AOE 169 | . . . 128 41 Terrain Rammed . | . . . . . Walls Destroyed . | . . . . . Machines Disabled . | . . . . . Actions | -11 -10 -9 -8 -8 --------- Run | Yrd Mat Mat Mat Sto Total 1899 | 176 291 384 734 314 Wait 172 | 23 45 26 40 38 Move 1396 | 141 214 256 562 223 Hop . | . . . . . Pick Up 28 | 3 4 5 15 1 Fast Attach 41 | 5 3 12 16 5 Attach 19 | . 1 11 4 3 Detach 10 | . . 9 1 . Swap 20 | 1 . 2 16 1 Drop 30 | . 2 5 21 2 Fire 154 | 2 22 42 54 34 Melee 28 | . . 16 5 7 Ram 1 | 1 . . . . Kick . | . . . . . Crush . | . . . . . Escape Stasis . | . . . . . Rewire . | . . . . . Trap . | . . . . . Miscellaneous . | . . . . . Route ------- -11/Scrapyard -10/Materials (discovered 3 exits: *Mat x3) -9/Materials (discovered 3 exits: *Mat / Min x2) -8/Materials -8/Storage History --------- Turn | Location | Event 2 | -11/Scrapyard | Met Revision 17 59 | -11/Scrapyard | Discovered new exit (range 8) 150 | -11/Scrapyard | Entered Materials 317 | -10/Materials | Build established: Mutant 401 | -10/Materials | Identified exit to Materials 442 | -10/Materials | Entered another Materials area 442 | -9/Materials | Evolved 2 slots: Propulsion x1, Utility x1 457 | -9/Materials | Identified exit to Mines 758 | -9/Materials | Lost 5 parts (1p1n1u2w) 808 | -9/Materials | Lost 3 parts (2n1u) 809 | -9/Materials | Core integrity fell below 50% 871 | -9/Materials | Discovered new exit (range 8) 954 | -9/Materials | Entered another Materials area 954 | -8/Materials | Evolved 2 slots: Propulsion x1, Weapon x1 1328 | -8/Materials | Garrison activated, responded to threat 1391 | -8/Materials | Lost 3 parts (1p1u1w) 1503 | -8/Materials | Lost 6 parts (3n3w) 1719 | -8/Materials | Garrison activated, responded to threat 1876 | -8/Materials | Discovered new exit (range 8) 1891 | -8/Materials | Entered Storage 1948 | -8/Storage | Build established: Scavenger-Skirmisher 2029 | -8/Storage | Garrison activated, responded to threat 2084 | -8/Storage | Destroyed 7 combat bots 2085 | -8/Storage | Core integrity fell below 50% 2289 | -8/Storage | Core integrity fell below 20% 2331 | -8/Storage | Destroyed by G-47 Trooper with Particle Gun Last Messages --------------- 02285_ K-01 Serf collects debris. 02287_ R-06 Scavenger collects Imp. Heat Sink. 02289_ L-31 Rogue destroyed. 02289_ K-01 Serf collects debris. 02289_ Acquired 47 matter. 02291_ K-01 Serf suffers critical hit (Burn). 02291_ K-01 Serf destroyed. 02291_ Critical hit (Burn: +37). 02294_ Imp. Light Armor Plating destroyed. 02296_ Acquired Imp. Aluminum Leg. 02306_ K-01 Serf cleans the Compression Vault. 02311_ G-47 Trooper Aluminum Leg severed. 02311_ Axe destroyed. 02311_ Aluminum Leg destroyed. 02313_ U-05 Engineer lays Concrete. 02319_ U-05 Engineer builds a Wall. 02322_ K-01 Serf cleans the Compression Vault. 02323_ U-05 Engineer builds a Wall. 02326_ K-01 Serf cleans the Compression Vault. 02328_ Imp. Aluminum Leg destroyed. Map ----- +----------------------------------------------------+ | | | | | ???????????????????????????????????????????? | | ???????????????????????????????????????????? | | ???????????????????????????????????????????? | | ???????????????????????????????????????????? | | ???????????????????????????????????????????? | | ???????????????????????????????????????????? | | ???????????????????????????????????????????? | | ???????????????????????????????????????????? | | ???????????????????????????????????????????? | | ???????????????????????????????????????????? | | ???????????????????????????????????????????? | | ???????????????????????????????????????????? | | ???????????????????????????????????????????? | | ???????????????????????????????????????????? | | ???????????????????????????????????????????? | | ???????????????????????????????????????????? | | ???????????????????????????????????????????? | | ????????????#####??????????????????????????? | | ????????????#"""#??????????????????????????? | | ????????????#"R"#???###????????????????????? | | ??????????###" "###? a?????????????????????? | | ??????????# #? #?????????????????????? | | ??????????# ## ##????????????????????? | | ??????????# """ #@ #####????????????????? | | ?????????## "" g a +????????????????? | | ?????????# "g# #####????????????????? | | ?????????##! k g ##Y##????????????????????? | | ??????????# """ ## #?????????????????????? | | ?????????## a""" ## ######????????????????? | | ?????????#T """ += +????????????????? | | ?????###?## ## ######????????????????? | | ???### ####% % ## ####??????????????????? | | ???# #####+#### # #??????????????? | | ???# " #??????????????? | | ???# =%*= # #??????????????? | | ???# /%= #?###??????????????? | | ???# ########## #??????????????????? | | ???## # # #########??????????????????? | | ???## *# # ####???????????????????????????? | | ???## !!!!#???????????????????????????? | | ???# #???????????????????????????? | | ???# ! !!!!#???????????????????????????? | | ???## = T######???????????????????????????? | | ????# ###????????????????????????????????? | | ????# #??????????????????????????????????? | | ????# #??????????????????????????????????? | | ????# ##########?????????????????????????? | | ????# # """" #?????????????????????????? | +----------------------------------------------------+ Best States ------------- Heat Dissipation 45 Energy Generation 14 Energy Capacity 280 Matter Stores 300 Matter Capacity 300 Sight Range 18 Robot Scan Range 14 Terrain Scan Density 10 Armor Coverage 150 Weapon Shielding 33 Evasion (%) 62 Item Schematics ----------------- None Robot Schematics ------------------ None Fabricated ------------ Nothing Alien Tech Used ----------------- None Achievements -------------- None Challenges ------------ None Game ------ Seed SiegeSuspensionPenetrator Manual? 0 Play Time 00:40:15 Cumulative 7.7 hours Start 2024.07.02 @ 19:41:37 End 2024.07.02 @ 20:19:39 Sessions 1 Manual Loads 0 Difficulty Rogue Special Mode None Game No. 8 Rogue 8 Adventurer 0 Explorer 0 Win Type - Total 0 Types 0/0/0/0/0/0/0/0/0 Lore% 8 Gallery% 16 Achievement% 15 Wizard Run 0 Options --------- Layout 0 ASCII 0 Keyboard 1 Movement Numpad Keybinds 0 Fullscreen 1 Font 18/SmallcapsGlow Map View 76x50 Zoom Use 0% Tactical HUD 1 Map Filters NONE Filters NONE Steam 1 RUN: 271d1057-16e1-4582-99f3-a0a997b59dae